bitfinex/quotes_BTCUSD_20250922
["timestamp","ask_amount","ask_price","bid_price","bid_amount"]
[1758499573084,0.005,115520.0,115510.0,1.73857222]
[1758499573281,0.005,115520.0,115510.0,1.74057222]
[1758499573502,0.006,115520.0,115510.0,1.74957222]
[1758499573816,0.004,115520.0,115510.0,1.73557222]
[1758499573950,0.005,115520.0,115510.0,1.74857222]
[1758499575212,0.006,115520.0,115510.0,1.75457222]
[1758499575649,0.006,115520.0,115510.0,1.48217222]
[1758499575769,0.006,115520.0,115510.0,1.75453222]
[1758499576177,0.006,115520.0,115510.0,1.64533584]
[1758499576675,0.006,115520.0,115510.0,1.75453222]
[1758499576879,0.0243,115540.0,115530.0,0.1731152]
[1758499577082,0.0243,115540.0,115530.0,0.59285663]
[1758499577290,0.02955,115540.0,115530.0,0.59285663]
[1758499577462,0.02955,115540.0,115530.0,0.99285663]
[1758499577670,0.02955,115540.0,115530.0,0.99481663]
[1758499577894,0.02955,115540.0,115530.0,0.72245663]
[1758499578054,0.0296721,115540.0,115530.0,0.72245663]
[1758499578258,0.0296721,115540.0,115530.0,0.73092183]
[1758499578463,0.0296721,115540.0,115530.0,1.00328183]
[1758499578663,0.0296721,115540.0,115530.0,1.06961672]
[1758499579104,0.0296721,115540.0,115530.0,1.07361672]
[1758499579657,0.0296721,115540.0,115530.0,1.07661672]
[1758499580363,0.0265721,115540.0,115530.0,1.07661672]
[1758499583101,0.0265721,115540.0,115530.0,1.07975672]
[1758499584837,0.0001221,115540.0,115530.0,1.07975672]
[1758499585030,0.0001221,115540.0,115530.0,1.10314672]
[1758499588797,0.0001221,115540.0,115530.0,1.10246672]
[1758499589582,0.0001221,115540.0,115530.0,0.83010672]
[1758499589760,0.0001221,115540.0,115530.0,0.76799496]
[1758499589976,0.0001221,115540.0,115530.0,1.04031496]
[1758499590630,0.0001221,115540.0,115530.0,0.76799496]
[1758499590832,0.0001221,115540.0,115530.0,1.04027496]
[1758499592674,0.0232821,115540.0,115530.0,1.04027496]
[1758499592800,0.0232821,115540.0,115530.0,0.76799496]
[1758499593007,0.0001221,115540.0,115530.0,0.76799496]
[1758499593208,0.0001221,115540.0,115530.0,1.04027496]
[1758499593442,0.0022121,115540.0,115530.0,0.76799496]
[1758499594055,0.0253721,115540.0,115530.0,0.76799496]
[1758499594251,0.0253721,115540.0,115530.0,0.74528496]
[1758499594433,0.0001221,115540.0,115530.0,0.76799496]
[1758499595539,0.0232821,115540.0,115530.0,0.76799496]
[1758499595740,0.0253721,115540.0,115530.0,0.74528496]
[1758499595948,0.0001221,115540.0,115530.0,0.76799496]
[1758499596749,0.0001221,115540.0,115530.0,0.36799496]
[1758499597188,0.0001221,115540.0,115530.0,0.76799496]
[1758499598662,0.0001221,115540.0,115530.0,1.04027496]
[1758499598853,0.0232821,115540.0,115530.0,1.04027496]
[1758499599266,0.0253721,115540.0,115530.0,0.76485496]
[1758499599470,0.0253721,115540.0,115530.0,0.74214496]
[1758499599675,0.0022121,115540.0,115530.0,0.74214496]
[1758499599885,0.0285121,115540.0,115530.0,0.74018496]
[1758499600851,0.20161232,115540.0,115530.0,0.74018496]
[1758499602433,0.0285121,115540.0,115530.0,0.34018496]
[1758499602787,0.20161232,115540.0,115530.0,0.34018496]
[1758499602993,0.20161232,115540.0,115530.0,0.74018496]
[1758499603567,0.20161232,115540.0,115530.0,0.74221496]
[1758499605965,0.0285121,115540.0,115530.0,0.34221496]
[1758499606172,0.0253721,115540.0,115530.0,0.34520496]
[1758499606382,0.0253721,115540.0,115530.0,0.74520496]
[1758499606587,0.0253721,115540.0,115530.0,0.76791496]
[1758499607428,0.0001221,115540.0,115530.0,0.76791496]
[1758499609310,0.0001221,115540.0,115530.0,0.84555466]
[1758499609526,0.0001221,115540.0,115530.0,0.44555466]
[1758499609949,0.0001221,115540.0,115530.0,0.84555466]
[1758499610343,0.0001221,115540.0,115530.0,0.87157114]
[1758499616147,0.0001221,115540.0,115530.0,1.14377114]
[1758499618642,0.0001221,115540.0,115530.0,0.87157114]
[1758499618896,0.0001221,115540.0,115530.0,1.14373114]
[1758499623595,0.0001221,115540.0,115530.0,0.87157114]
[1758499623804,0.0001221,115540.0,115530.0,1.14373114]
[1758499624012,0.0001221,115540.0,115530.0,0.87157114]
[1758499624225,0.0020821,115540.0,115530.0,0.87157114]
[1758499624433,0.0260021,115540.0,115530.0,1.12098114]
[1758499625280,0.0260021,115540.0,115530.0,0.84886114]
[1758499625486,0.0260021,115540.0,115530.0,1.12098114]
[1758499625924,0.0020821,115540.0,115530.0,1.14596114]
[1758499626132,0.0001221,115540.0,115530.0,1.14596114]
[1758499634120,0.0001221,115540.0,115530.0,1.14592114]
[1758499655689,0.0001221,115540.0,115530.0,1.48592114]
[1758499656119,0.0001221,115540.0,115530.0,1.40828144]
[1758499656318,0.40866592,115570.0,115560.0,0.17307026]
[1758499656574,0.41077592,115570.0,115560.0,0.25833993]
[1758499656995,0.41077592,115570.0,115560.0,0.08526967]
[1758499657304,0.34184309,115570.0,115560.0,0.10257669]
[1758499657922,0.34584309,115570.0,115560.0,0.08526967]
[1758499658755,0.34584309,115570.0,115560.0,0.14908589]
[1758499659142,0.34684309,115570.0,115560.0,0.14908589]
[1758499660350,0.61876309,115570.0,115560.0,0.33946317]
[1758499660569,0.61876309,115570.0,115560.0,0.14908589]
[1758499660784,0.61876309,115570.0,115560.0,0.16639291]
[1758499661414,0.61876309,115570.0,115560.0,0.33946317]
[1758499661633,0.61876309,115570.0,115560.0,0.32215615]
[1758499663367,0.34684309,115570.0,115560.0,0.32215615]
[1758499663770,0.61876309,115570.0,115560.0,0.32215615]
[1758499664938,0.61876309,115570.0,115560.0,0.33097516]
[1758499669865,0.14010616,115570.0,115560.0,0.33097516]
[1758499670074,0.40797104,115570.0,115560.0,0.33311516]
[1758499670290,0.40793104,115570.0,115560.0,0.33311516]
[1758499670522,0.38297104,115570.0,115560.0,0.33622516]
[1758499670742,0.3708,115570.0,115560.0,0.36085516]
[1758499670968,0.3708,115570.0,115560.0,0.76085516]
[1758499672263,0.27724,115570.0,115560.0,0.76085516]
[1758499672799,0.27724,115570.0,115560.0,0.7868665]
[1758499673413,0.27724,115570.0,115560.0,0.7622365]
[1758499673646,0.27724,115570.0,115560.0,0.7868665]
[1758499674113,0.27724,115570.0,115560.0,0.3868665]
[1758499674544,0.27724,115570.0,115560.0,0.7868665]
[1758499675829,0.0054,115570.0,115560.0,0.7622365]
[1758499676030,0.0054,115570.0,115560.0,1.0587065]
[1758499677700,0.0054,115570.0,115560.0,1.0586665]
[1758499678111,0.0054,115570.0,115560.0,0.7868665]
[1758499678331,0.0054,115570.0,115560.0,0.84898158]
[1758499679278,0.0054,115570.0,115560.0,0.7868665]
[1758499680965,0.03186,115570.0,115560.0,0.7868665]
[1758499681176,0.03186,115570.0,115560.0,0.7622365]
[1758499681384,0.18355529,115570.0,115560.0,0.7569865]
[1758499681592,0.20796529,115570.0,115560.0,0.7569865]
[1758499682324,0.21802633,115570.0,115560.0,0.57509723]
[1758499682525,0.21802633,115570.0,115560.0,0.14908589]
[1758499686793,0.24352846,115570.0,115560.0,0.14908589]
[1758499687056,0.31502073,115570.0,115560.0,0.14908589]
[1758499687289,0.18314628,115550.0,115540.0,0.02601512]
[1758499687511,0.18316126,115540.0,115530.0,0.46633489]
[1758499687720,0.21267126,115540.0,115530.0,0.4]
[1758499687933,0.21267126,115540.0,115530.0,0.54928443]
[1758499688576,0.21267126,115540.0,115530.0,0.14928443]
[1758499688785,0.21267126,115540.0,115530.0,0.15328443]
[1758499689172,0.21267126,115540.0,115530.0,0.15828443]
[1758499689442,0.21267126,115540.0,115530.0,0.14928443]
[1758499689652,0.21267126,115540.0,115530.0,0.15028443]
[1758499689836,0.21467126,115540.0,115530.0,0.15028443]
[1758499691100,0.48643126,115540.0,115530.0,0.15028443]
[1758499691735,0.21467126,115540.0,115530.0,0.15028443]
[1758499691962,0.48643126,115540.0,115530.0,0.15028443]
[1758499692591,0.21467126,115540.0,115530.0,0.15028443]
[1758499692796,0.48643126,115540.0,115530.0,0.15028443]
[1758499692997,0.24069097,115540.0,115530.0,0.15028443]
[1758499693213,0.51245097,115540.0,115530.0,0.15028443]
[1758499697087,0.24069097,115540.0,115530.0,0.15028443]
[1758499697274,0.51245097,115540.0,115530.0,0.15028443]
[1758499698778,0.24069097,115540.0,115530.0,0.15028443]
[1758499699145,0.24069097,115540.0,115530.0,0.15226443]
[1758499699368,0.51241097,115540.0,115530.0,0.15226443]
[1758499701058,0.51241097,115540.0,115530.0,0.15028443]
[1758499705336,0.24069097,115540.0,115530.0,0.15028443]
[1758499705543,0.51241097,115540.0,115530.0,0.15028443]
[1758499705966,0.51241097,115540.0,115530.0,0.15226443]
[1758499706546,0.50936097,115540.0,115530.0,0.15226443]
[1758499707353,0.51237097,115540.0,115530.0,0.15226443]
[1758499708156,0.51237097,115540.0,115530.0,0.15028443]
[1758499716944,0.60064377,115540.0,115530.0,0.06501476]
[1758499717186,0.60064377,115540.0,115530.0,0.001]
[1758499719172,0.60056377,115540.0,115530.0,0.001]
[1758499720584,0.32892377,115540.0,115530.0,0.001]
[1758499720788,0.60056377,115540.0,115530.0,0.001]
[1758499721212,0.32892377,115540.0,115530.0,0.001]
[1758499721451,0.60056377,115540.0,115530.0,0.001]
[1758499724609,0.32892377,115540.0,115530.0,0.001]
[1758499724824,0.60056377,115540.0,115530.0,0.001]
[1758499727643,0.32892377,115540.0,115530.0,0.001]
[1758499727790,0.60056377,115540.0,115530.0,0.001]
[1758499728363,0.27027948,115540.0,115530.0,0.001]
[1758499728572,0.54191948,115540.0,115530.0,0.001]
[1758499730065,0.63551948,115540.0,115530.0,0.001]
[1758499731604,0.36387948,115540.0,115530.0,0.001]
[1758499731936,0.63547948,115540.0,115530.0,0.001]
[1758499733463,0.68715636,115540.0,115530.0,0.001]
[1758499735621,0.98715636,115540.0,115530.0,0.001]
[1758499736372,1.44737021,115540.0,115530.0,1e-08]
[1758499736604,1.49606707,115540.0,115530.0,1e-08]
[1758499737305,0.18322121,115500.0,115490.0,0.02577]
[1758499737552,0.45482121,115500.0,115490.0,0.11150974]
[1758499737776,0.45482121,115500.0,115490.0,0.17800474]
[1758499738011,0.45482121,115500.0,115490.0,0.11362974]
[1758499738690,0.48084972,115500.0,115490.0,0.11362974]
[1758499739365,0.20924972,115500.0,115490.0,0.11362974]
[1758499739592,0.48084972,115500.0,115490.0,0.11662974]
[1758499740789,0.48968993,115500.0,115490.0,0.11662974]
[1758499742339,0.48968993,115500.0,115490.0,0.18212294]
[1758499743022,0.53784944,115500.0,115490.0,0.15943294]
[1758499743269,0.51825944,115500.0,115490.0,0.15635294]
[1758499743505,0.54078944,115500.0,115490.0,0.15635294]
[1758499744123,0.54078944,115500.0,115490.0,0.15423294]
[1758499744822,0.6215429,115500.0,115490.0,0.00247007]
[1758499745284,0.6215429,115500.0,115490.0,0.00047007]
[1758499745709,0.6235429,115500.0,115490.0,0.00047007]
[1758499746148,0.3519429,115500.0,115490.0,0.00047007]
[1758499746358,0.6235429,115500.0,115490.0,0.00047007]
[1758499748627,0.3519429,115500.0,115490.0,0.00047007]
[1758499748862,0.6235429,115500.0,115490.0,0.00047007]
[1758499749270,0.3519429,115500.0,115490.0,0.00047007]
[1758499749452,0.59751439,115500.0,115490.0,0.00047007]
[1758499750046,0.51676093,115500.0,115490.0,0.00047007]
[1758499750250,0.24516093,115500.0,115490.0,0.00047007]
[1758499750634,0.51676093,115500.0,115490.0,0.00047007]
[1758499751489,0.52076093,115500.0,115490.0,0.00047007]
[1758499751689,0.24916093,115500.0,115490.0,0.00047007]
[1758499752054,0.57495476,115500.0,115490.0,0.00047007]
[1758499754292,0.52076093,115500.0,115490.0,0.00047007]
[1758499756191,0.52683329,115500.0,115490.0,0.00047007]
[1758499756545,0.55286543,115500.0,115490.0,0.00047007]
[1758499757368,0.55282543,115500.0,115490.0,0.00047007]
[1758499760119,0.5528255,115500.0,115490.0,0.00047007]
[1758499760324,0.63478257,115500.0,115490.0,0.00047007]
[1758499761990,0.36322257,115500.0,115490.0,0.00047007]
[1758499762166,0.25772599,115500.0,115490.0,0.00047007]
[1758499762366,0.52928599,115500.0,115490.0,0.00047007]
[1758499764183,0.25772599,115500.0,115490.0,0.00047007]
[1758499764603,0.52928599,115500.0,115490.0,0.00047007]
[1758499765422,0.25772599,115500.0,115490.0,0.00047007]
[1758499765680,0.52928599,115500.0,115490.0,0.00047007]
[1758499766552,0.60888911,115500.0,115490.0,0.00047007]
[1758499770144,0.65678226,115500.0,115490.0,0.00047007]
[1758499772531,0.95678226,115500.0,115490.0,0.00047007]
[1758499774141,0.93324275,115500.0,115490.0,0.00047007]
[1758499774340,0.95678226,115500.0,115490.0,0.00047007]
[1758499774895,0.68522226,115500.0,115490.0,0.00047007]
[1758499775134,1.29674226,115500.0,115490.0,0.00047007]
[1758499776547,1.67130226,115500.0,115490.0,0.00047007]
[1758499777972,1.39978226,115500.0,115490.0,0.00047007]
[1758499778189,1.67130226,115500.0,115490.0,0.00047007]
[1758499778410,1.67126226,115500.0,115490.0,0.00047007]
[1758499779183,1.64772275,115500.0,115490.0,0.00047007]
[1758499780264,1.34868275,115500.0,115490.0,0.00567007]
[1758499780477,1.54055963,115500.0,115490.0,0.02981007]
[1758499781522,1.55594175,115500.0,115490.0,0.02981007]
[1758499782102,1.55793175,115500.0,115490.0,0.02981007]
[1758499782495,1.55793175,115500.0,115490.0,0.00567007]
[1758499783304,1.55793175,115500.0,115490.0,0.00259007]
[1758499784451,1.28645175,115500.0,115490.0,0.00259007]
[1758499784797,1.55793175,115500.0,115490.0,0.00259007]
[1758499785000,1.55793175,115500.0,115490.0,0.00567007]
[1758499785201,1.56110175,115500.0,115490.0,0.00047007]
[1758499785603,1.59569178,115500.0,115490.0,0.00047007]
[1758499786421,1.56110175,115500.0,115490.0,0.00047007]
[1758499787700,1.55298663,115500.0,115490.0,0.00047007]
[1758499791350,1.54486599,115500.0,115490.0,0.00047007]
[1758499791755,1.56110911,115500.0,115490.0,0.00047007]
[1758499791983,1.2807889,115500.0,115490.0,0.00047007]
[1758499792185,1.63751731,115500.0,115490.0,0.00047007]
[1758499792318,1.62127419,115500.0,115490.0,0.00047007]
[1758499792726,1.53600452,115500.0,115490.0,0.00047007]
[1758499797976,1.53596452,115500.0,115490.0,0.00047007]
[1758499801082,1.26456452,115500.0,115490.0,0.00047007]
[1758499801311,1.53596452,115500.0,115490.0,0.00047007]
[1758499805398,1.62960452,115500.0,115490.0,0.00047007]
[1758499805631,1.71487419,115500.0,115490.0,0.00047007]
[1758499806024,1.72299642,115500.0,115490.0,0.00047007]
[1758499806230,1.71487419,115500.0,115490.0,0.00047007]
[1758499807272,1.63772772,115500.0,115490.0,0.00047007]
[1758499808841,1.6539751,115500.0,115490.0,0.00047007]
[1758499809047,1.6458519,115500.0,115490.0,0.00047007]
[1758499810741,1.64585341,115500.0,115490.0,0.00047007]
[1758499811379,1.04579341,115500.0,115490.0,0.00570007]
[1758499811576,1.30090603,115500.0,115490.0,0.03015007]
[1758499812036,0.96090616,115500.0,115490.0,0.03015007]
[1758499812456,0.95084512,115500.0,115490.0,0.03015007]
[1758499812661,0.67948512,115500.0,115490.0,0.03015007]
[1758499812866,0.96090616,115500.0,115490.0,0.03015007]
[1758499814452,0.98727616,115500.0,115490.0,0.00248007]
[1758499814654,0.99039458,115500.0,115490.0,0.00248007]
[1758499814860,0.99039458,115500.0,115490.0,0.00047007]
[1758499816442,0.99039395,115500.0,115490.0,0.00047007]
[1758499817070,0.99039395,115500.0,115490.0,0.00248007]
[1758499817268,0.98118335,115500.0,115490.0,0.00248007]
[1758499817593,0.97920335,115500.0,115490.0,0.00570007]
[1758499817798,0.95477335,115500.0,115490.0,0.03015007]
[1758499817994,0.96086408,115500.0,115490.0,0.03015007]
[1758499818792,0.95477335,115500.0,115490.0,0.03015007]
[1758499822311,0.94471231,115500.0,115490.0,0.11541974]
[1758499822620,0.95477335,115500.0,115490.0,0.35339248]
[1758499822962,0.75558104,115500.0,115490.0,0.35339248]
[1758499823162,0.74552,115500.0,115490.0,0.35339248]
[1758499823382,0.74552,115500.0,115490.0,0.2885949]
[1758499823583,0.75558104,115500.0,115490.0,0.2885949]
[1758499824531,0.55418121,115500.0,115490.0,0.2885949]
[1758499824770,0.38102104,115500.0,115490.0,0.2885949]
[1758499824968,0.38098104,115500.0,115490.0,0.2885949]
[1758499825535,0.55414121,115500.0,115490.0,0.2885949]
[1758499826010,0.38098104,115500.0,115490.0,0.2885949]
[1758499827429,0.38098104,115500.0,115490.0,0.31462343]
[1758499828200,0.38098104,115500.0,115490.0,0.37973956]
[1758499828817,0.55414121,115500.0,115490.0,0.37973956]
[1758499830377,0.38098104,115500.0,115490.0,0.37973956]
[1758499831954,0.38094104,115500.0,115490.0,0.37973956]
[1758499832814,0.55410121,115500.0,115490.0,0.37973956]
[1758499834688,0.57913121,115500.0,115490.0,0.35528956]
[1758499835047,0.55410121,115500.0,115490.0,0.37866956]
[1758499838519,0.55615121,115500.0,115490.0,0.2022744]
[1758499838738,0.55615121,115500.0,115490.0,0.17933587]
[1758499838976,0.55615121,115500.0,115490.0,0.35251103]
[1758499841991,0.57913121,115500.0,115490.0,0.35251103]
[1758499843611,0.57708121,115500.0,115490.0,0.35251103]
[1758499843831,0.28286121,115500.0,115490.0,0.35251103]
[1758499844052,0.006,115500.0,115490.0,0.35251103]
[1758499844278,0.2772,115500.0,115490.0,0.37853748]
[1758499845541,0.2772,115500.0,115490.0,0.71853748]
[1758499845892,0.2772,115500.0,115490.0,0.72053748]
[1758499846118,0.2752,115500.0,115490.0,0.72053748]
[1758499846354,0.2752,115500.0,115490.0,0.8002837]
[1758499846595,0.2752,115500.0,115490.0,0.7962837]
[1758499846805,0.004,115500.0,115490.0,0.8052837]
[1758499847028,0.005,115500.0,115490.0,1.2052837]
[1758499847253,0.005,115500.0,115490.0,1.12753748]
[1758499847700,0.005,115500.0,115490.0,1.2052837]
[1758499848545,0.005,115500.0,115490.0,1.12753748]
[1758499850335,0.005,115500.0,115490.0,1.2052837]
[1758499852604,0.15779,115500.0,115490.0,1.2052837]
[1758499858425,0.15779,115500.0,115490.0,1.4764437]
[1758499860276,0.15779,115500.0,115490.0,1.2052837]
[1758499860422,0.15779,115500.0,115490.0,1.4764437]
[1758499860858,0.15779,115500.0,115490.0,1.2052837]
[1758499861062,0.15779,115500.0,115490.0,1.4764037]
[1758499863141,0.15779,115500.0,115490.0,1.2052837]
[1758499863368,0.15779,115500.0,115490.0,1.4764037]
[1758499864998,0.15779,115500.0,115490.0,1.5065556]
[1758499865243,0.15779,115500.0,115490.0,1.42880938]
[1758499865451,0.15779,115500.0,115490.0,1.50660901]
[1758499865632,0.15779,115500.0,115490.0,1.42880938]
[1758499865849,0.15679,115500.0,115490.0,1.41980938]
[1758499866057,0.15779,115500.0,115490.0,1.42580938]
[1758499866675,0.15879,115500.0,115490.0,1.43580938]
[1758499867534,0.13278903,115500.0,115490.0,1.43580938]
[1758499867728,0.08078709,115500.0,115490.0,1.54500576]
[1758499867969,0.05478612,115500.0,115490.0,1.54500576]
[1758499868178,0.02878515,115500.0,115490.0,1.43580938]
[1758499868364,0.00278418,115500.0,115490.0,1.5135768]
[1758499868758,0.10190387,115530.0,115520.0,0.17313019]
[1758499868961,0.07899387,115530.0,115520.0,0.26374986]
[1758499869205,0.10385387,115530.0,115520.0,0.26374986]
[1758499869372,0.00195,115530.0,115520.0,0.26054986]
[1758499869549,0.004,115540.0,115530.0,0.1731152]
[1758499869737,0.004,115540.0,115530.0,0.28721487]
[1758499869935,0.004,115540.0,115530.0,0.31323154]
[1758499870371,0.004,115540.0,115530.0,0.58431154]
[1758499872174,0.009,115540.0,115530.0,0.58631154]
[1758499872376,0.004,115540.0,115530.0,0.58631154]
[1758499872784,0.006,115540.0,115530.0,0.31523154]
[1758499873056,0.006,115540.0,115530.0,0.58631154]
[1758499873296,0.006,115540.0,115530.0,0.71523154]
[1758499873520,0.006,115540.0,115530.0,0.99478207]
[1758499874297,0.006,115540.0,115530.0,0.7891466]
[1758499874501,0.006,115540.0,115530.0,1.0602266]
[1758499875195,0.006,115540.0,115530.0,0.7891466]
[1758499875337,0.006,115540.0,115530.0,1.0601866]
[1758499880244,0.006,115540.0,115530.0,0.7891466]
[1758499880682,0.006,115540.0,115530.0,1.0601866]
[1758499881223,0.006,115540.0,115530.0,0.7891466]
[1758499881462,0.006,115540.0,115530.0,1.0601466]
[1758499883355,0.006,115540.0,115530.0,0.7891466]
[1758499883562,0.006,115540.0,115530.0,1.0601466]
[1758499894734,0.006,115540.0,115530.0,0.7891466]
[1758499894878,0.006,115540.0,115530.0,1.0601066]
[1758499896607,0.00805,115540.0,115530.0,0.7653166]
[1758499896816,0.47949022,115540.0,115530.0,0.7603166]
[1758499897032,0.47949022,115540.0,115530.0,0.5872014]
[1758499897444,0.03543,115540.0,115530.0,0.73429993]
[1758499897670,0.47949022,115540.0,115530.0,0.73429993]
[1758499897868,0.30639,115540.0,115530.0,0.73429993]
[1758499898070,0.47949022,115540.0,115530.0,0.73429993]
[1758499898276,0.03543,115540.0,115530.0,0.73429993]
[1758499898504,0.30639,115540.0,115530.0,0.73429993]
[1758499898708,0.03218,115540.0,115530.0,0.73642993]
[1758499898837,0.006,115540.0,115530.0,0.73957993]
[1758499899042,0.006,115540.0,115530.0,0.76262993]
[1758499899244,0.006,115540.0,115530.0,0.85090976]
[1758499899467,0.00805,115540.0,115530.0,0.82257976]
[1758499899664,0.20853022,115540.0,115530.0,0.7880928]
[1758499899893,0.20853022,115540.0,115530.0,0.6149776]
[1758499900090,0.20853022,115540.0,115530.0,0.7880928]
[1758499900335,0.20853022,115540.0,115530.0,0.7258294]
[1758499902781,0.20853022,115540.0,115530.0,0.3258294]
[1758499903356,0.20853022,115540.0,115530.0,0.7258294]
[1758499906172,0.47949022,115540.0,115530.0,0.7258294]
[1758499906391,0.47949022,115540.0,115530.0,0.3258294]
[1758499906859,0.006,115540.0,115530.0,0.7311094]
[1758499907075,0.006,115540.0,115530.0,1.0251194]
[1758499913221,0.006,115540.0,115530.0,1.05113531]
[1758499914212,0.006,115540.0,115530.0,1.12890273]
[1758499924550,0.006,115540.0,115530.0,1.12886273]
[1758499924936,0.006,115540.0,115530.0,0.85794273]
[1758499925376,0.006,115540.0,115530.0,1.12882273]
[1758499926265,0.006,115540.0,115530.0,0.85794273]
[1758499927119,0.006,115540.0,115530.0,1.12882273]
[1758499927906,0.006,115540.0,115530.0,0.85794273]
[1758499928108,0.006,115540.0,115530.0,1.12882273]
[1758499928499,0.02943,115540.0,115530.0,0.85794273]
[1758499928697,0.03138,115540.0,115530.0,0.85479273]
[1758499928861,0.03612,115540.0,115530.0,1.10262273]
[1758499929063,0.03289,115540.0,115530.0,0.83174273]
[1758499929305,0.03289,115540.0,115530.0,1.10262273]
[1758499930306,0.006,115540.0,115530.0,1.10584273]
[1758499930578,0.006,115540.0,115530.0,1.12933273]
[1758499934689,0.006,115540.0,115530.0,1.73903273]
[1758499935114,0.006,115540.0,115530.0,1.66126531]
[1758499935966,0.006,115540.0,115530.0,1.69141721]
[1758499936181,0.006,115540.0,115530.0,1.85061359]
[1758499936597,0.006,115540.0,115530.0,1.74141721]
[1758499936827,0.006,115540.0,115530.0,1.73941721]
[1758499937276,0.17905283,115570.0,115560.0,0.17307026]
[1758499937483,0.17905283,115570.0,115560.0,0.34917929]
[1758499937925,0.17905283,115570.0,115560.0,0.74917929]
[1758499938153,0.20910283,115570.0,115560.0,0.74651832]
[1758499938377,0.38215812,115570.0,115560.0,0.72050929]
[1758499938598,0.38215812,115570.0,115560.0,0.72231208]
[1758499938789,0.31322529,115570.0,115560.0,0.72231208]
[1758499939380,0.32928633,115570.0,115560.0,0.54924182]
[1758499939828,0.31312633,115570.0,115560.0,0.54924182]
[1758499940041,0.58396633,115570.0,115560.0,0.14924182]
[1758499943916,0.58396633,115570.0,115560.0,0.54924182]
[1758499947119,0.58396633,115570.0,115560.0,0.14924182]
[1758499947774,0.58396633,115570.0,115560.0,0.54924182]
[1758499950506,0.58396633,115570.0,115560.0,0.14924182]
[1758499951139,0.58396633,115570.0,115560.0,0.54924182]
[1758499952462,0.31312633,115570.0,115560.0,0.54924182]
[1758499952697,0.58396633,115570.0,115560.0,0.54924182]
[1758499954093,0.58396633,115570.0,115560.0,0.14924182]
[1758499954645,0.58396633,115570.0,115560.0,0.54924182]
[1758499955676,0.31312633,115570.0,115560.0,0.54924182]
[1758499955821,0.58392633,115570.0,115560.0,0.54924182]
[1758499956287,0.31312633,115570.0,115560.0,0.54924182]
[1758499956542,0.58392633,115570.0,115560.0,0.54924182]
[1758499957277,0.31312633,115570.0,115560.0,0.54924182]
[1758499957502,0.58392633,115570.0,115560.0,0.54924182]
[1758499957705,0.58392633,115570.0,115560.0,0.14924182]
[1758499958199,0.58392633,115570.0,115560.0,0.54924182]
[1758499961211,0.58392633,115570.0,115560.0,0.14924182]
[1758499961627,0.58392633,115570.0,115560.0,0.54924182]
[1758499962999,0.58392633,115570.0,115560.0,0.14924182]
[1758499963872,0.18314628,115550.0,115540.0,0.42601476]
[1758499964111,0.18316126,115540.0,115530.0,0.06838453]
[1758499964329,0.20932126,115540.0,115530.0,0.06746453]
[1758499964541,0.20932126,115540.0,115530.0,0.46746453]
[1758499965433,0.21245126,115540.0,115530.0,0.5507142]
[1758499965649,0.21245126,115540.0,115530.0,0.5557142]
[1758499965866,0.30601126,115540.0,115530.0,0.5507142]
[1758499966100,0.30601126,115540.0,115530.0,0.1547142]
[1758499966320,0.30601126,115540.0,115530.0,0.1557142]
[1758499966531,0.30601126,115540.0,115530.0,0.1547142]
[1758499966734,0.31201126,115540.0,115530.0,0.1547142]
[1758499967281,0.31201126,115540.0,115530.0,0.1507142]
[1758499968276,0.30801126,115540.0,115530.0,0.1507142]
[1758499968718,0.31701126,115540.0,115530.0,0.1507142]
[1758499972003,0.31701126,115540.0,115530.0,0.08526967]
[1758499973802,0.61387223,115540.0,115530.0,0.08526967]
[1758499974953,0.6524802,115540.0,115530.0,0.08526967]
[1758499975827,0.3816402,115540.0,115530.0,0.08526967]
[1758499975977,0.6524802,115540.0,115530.0,0.08526967]
[1758499976620,0.34303223,115540.0,115530.0,0.08526967]
[1758499976826,0.61387223,115540.0,115530.0,0.08526967]
[1758499977028,0.34303223,115540.0,115530.0,0.08526967]
[1758499977254,0.61387223,115540.0,115530.0,0.08526967]
[1758499980321,0.34303223,115540.0,115530.0,0.08526967]
[1758499980699,0.61387223,115540.0,115530.0,0.08526967]
[1758499981487,0.34303223,115540.0,115530.0,0.08526967]
[1758499981712,0.30368119,115540.0,115530.0,0.09037967]
[1758499981944,0.57452119,115540.0,115530.0,0.28744487]
[1758499982182,0.55856126,115540.0,115530.0,0.28744487]
[1758499982632,0.28772126,115540.0,115530.0,0.28744487]
[1758499983079,0.55856126,115540.0,115530.0,0.28744487]
[1758499983506,0.55856126,115540.0,115530.0,0.11432967]
[1758499983735,0.58451126,115540.0,115530.0,0.08742967]
[1758499983949,0.55856126,115540.0,115530.0,0.28744487]
[1758499984165,0.55856126,115540.0,115530.0,0.11432967]
[1758499985669,0.58749126,115540.0,115530.0,0.08742967]
[1758499986244,0.58451126,115540.0,115530.0,0.08742967]
[1758499986472,0.28772126,115540.0,115530.0,0.09037967]
[1758499986677,0.55856126,115540.0,115530.0,0.11432967]
[1758499987075,0.56055126,115540.0,115530.0,0.11432967]
[1758499987279,0.58451126,115540.0,115530.0,0.09037967]
[1758499988086,0.58451126,115540.0,115530.0,0.08742967]
[1758499990196,0.58746126,115540.0,115530.0,0.08526967]
[1758499991102,0.65261921,115540.0,115530.0,0.08526967]
[1758499992021,0.58746126,115540.0,115530.0,0.08526967]
[1758499992473,0.59354549,115540.0,115530.0,0.08526967]
[1758500003130,0.32270549,115540.0,115530.0,0.08526967]
[1758500003379,0.59354549,115540.0,115530.0,0.08526967]
[1758500006820,0.32270549,115540.0,115530.0,0.08526967]
[1758500007032,0.59354549,115540.0,115530.0,0.08526967]
[1758500013267,0.58746126,115540.0,115530.0,0.08526967]
[1758500015243,0.31662126,115540.0,115530.0,0.08526967]
[1758500015505,0.58746126,115540.0,115530.0,0.08526967]
[1758500015729,0.18317624,115530.0,115520.0,0.06627563]
[1758500015928,0.18317624,115530.0,115520.0,0.1516674]
[1758500016055,0.21157624,115530.0,115520.0,0.08539177]
[1758500016250,0.18826624,115530.0,115520.0,0.08539177]
[1758500016507,0.2426649,115530.0,115520.0,0.08539177]
[1758500016950,0.21157624,115530.0,115520.0,0.0001221]
[1758500017992,0.21757624,115530.0,115520.0,0.0001221]
[1758500018428,0.48841624,115530.0,115520.0,0.0001221]
[1758500019312,0.21757624,115530.0,115520.0,0.0001221]
[1758500019543,0.48841624,115530.0,115520.0,0.0001221]
[1758500019918,0.54635033,115530.0,115520.0,0.0001221]
[1758500022578,0.27551033,115530.0,115520.0,0.0001221]
[1758500022833,0.21445624,115530.0,115520.0,0.0022221]
[1758500023057,0.48529624,115530.0,115520.0,0.0053921]
[1758500023298,0.48529624,115530.0,115520.0,0.0022221]
[1758500023731,0.48529624,115530.0,115520.0,0.0053921]
[1758500024439,0.21445624,115530.0,115520.0,0.0053921]
[1758500024921,0.48529624,115530.0,115520.0,0.0291521]